[Event "Budapest Chess Festival 2024"]
[Site "Budapest"]
[Date "2024.05.28"]
[Round "6.9"]
[White "Popovic, Dusan"]
[Black "Arhan, Chethan Anand"]
[Result "1-0"]
[ECO "A06"]
[WhiteElo "2486"]
[BlackElo "2366"]
[Annotator "TA"]
[PlyCount "117"]
[EventDate "2024.05.20"]
[EventType "swiss"]
[EventCountry "HUN"]
[SourceTitle "playchess.com"]
[Source "ChessBase"]
[SourceQuality "1"]
[TimeControl "40/5400+30:1800+30"]

{[%evp 15,117,6,20,11,19,0,25,9,10,14,16,22,18,19,36,13,18,9,50,30,93,65,72,54,52,59,66,50,92,0,0,0,0,0,0,0,0,0,0,0,0,0,18,6,23,2,2,2,20,23,65,55,83,94,119,115,123,115,115,120,185,185,170,173,171,171,286,281,384,370,29961,1515,29968,29969,29969,29970,29970,29971,29970,29971,29972,29972,29972,29973,29975,29968,29975,29976,29979,29980,29980,29981,29981,29982,29982,29983,29984,29985,29985,29986,29986,29987,29987,29988]} 1. Nf3 {[%emt 0:06:59]} d5 {[%emt 0:00:36]} 2. g3 {[%emt 0:00:14]} Nd7 {[%emt 0:00:05]} 3. Bg2 {[%emt 0:00:14]} e5 {[%emt 0:00:07]} 4. d3 {[%emt 0:00:12]} Ngf6 {[%emt 0:00:07]} 5. O-O {[%emt 0:00:09]} Bc5 {[%emt 0:00:14]} 6. c4 {[%emt 0:00:26]} dxc4 {[%emt 0:00:35]} 7. dxc4 {[%emt 0:00:09]} O-O {[%emt 0:01:32]} 8. Nc3 {[%emt 0:00:18]} h6 {[%emt 0:06:09]} 9. Na4 {[%emt 0:01:33]} Bd6 {[%emt 0:02:10]} 10. Qc2 {[%emt 0:01:21]} e4 {[%emt 0:12:04]} 11. Nd4 {[%emt 0:01:42][%cal Of1d1] White has an edge.} Nc5 {[%emt 0:10:37]} 12. Nb5 {[%emt 0:10:19]} Nxa4 {[%emt 0:06:25]} 13. Nxd6 $1 {[%emt 0:00:37]} Qxd6 {[%emt 0:00:21]} 14. Qxa4 {[%emt 0:00:06]} Bg4 {[%emt 0:01:23]} 15. Re1 {[%emt 0:04:15]} Qe6 {[%emt 0:03:14]} 16. Bf4 {[%emt 0:03:10]} g5 {[%emt 0:08:15]} 17. Be3 {[%emt 0:05:27][%cal Of2f4]} Rfd8 {[%emt 0:02:00]} (17... Bh3 $11 {keeps the balance.}) 18. Qb3 {[%emt 0:18:58]} b6 {[%emt 0:11:08]} 19. Qc3 {[%emt 0:04:48]} c5 {[%emt 0:03:21]} 20. b3 {[%emt 0:09:37][%cal Oh2h3]} Rd7 {[%emt 0:04:52]} 21. Bc1 {[%emt 0:01:19] [#] And now f3 would win.} Rad8 {[%emt 0:07:56]} 22. Bb2 {[%emt 0:02:04]} (22. h3 $16 Bf5 23. Bb2) 22... Rd4 $1 $11 {[%emt 0:00:56]} 23. e3 {[%emt 0:19:52]} R4d6 {[%emt 0:00:04]} 24. Qxf6 {[%emt 0:00:29]} Qxf6 {[%emt 0:00:03]} 25. Bxf6 {[%emt 0:00:05]} Rxf6 {[%emt 0:00:02]} 26. Bxe4 {[%emt 0:00:10]} Rd2 {[%emt 0:00:26]} 27. f4 $36 {[%emt 0:00:17][%mdl 2048] White fights for an advantage.} Rfd6 {[%emt 0:06:29]} 28. Bd5 {[%emt 0:01:54]} gxf4 {[%emt 0:00:07]} 29. exf4 {[%emt 0:00:29]} Be6 {[%emt 0:00:26]} 30. Red1 {[%emt 0:01:43]} Rb2 {[%emt 0:00:14]} 31. Rd3 {[%emt 0:03:52]} Bxd5 {[%emt 0:01:50]} 32. cxd5 {[%emt 0:00:10][%mdl 4096] Endgame. KRR-KRR} a5 {[%emt 0:01:21]} 33. a4 {[%emt 0:01:01]} Re2 {[%emt 0:00:07]} 34. Rad1 {[%emt 0:00:33] White leaves nothing to chance now.} Kf8 {[%emt 0:03:11]} 35. R1d2 {[%emt 0:00:04]} Re4 {[%emt 0:00:03]} 36. Kf2 {[%emt 0:01:02]} Rb4 {[%emt 0:01:47]} 37. Rc2 {[%emt 0:01:45]} b5 {[%emt 0:02:36] Wards off Rc4} (37... Ke7 $16 38. Rc4 Rd7) 38. axb5 $18 {[%emt 0:01:02]} (38. Rxc5 bxa4 39. bxa4 (39. Rxa5 axb3 40. Ra1 b2 $11) 39... Rxa4 $16) 38... Rxb5 {[%emt 0:00:02]} 39. Kf3 {[%emt 0:00:30]} f5 {[%emt 0:02:57]} 40. Re2 {[%emt 0:00:00]} Rdb6 {[%emt 0:00:00]} (40... Kf7 $142 41. Re5 Kf6) 41. Ree3 {[%emt 0:04:10]} Rb4 {[%emt 0:09:27]} 42. d6 {[%emt 0:04:50] Black must now prevent d7.} Rd4 $2 {[%emt 0:00:21]} (42... Rb8 $18 43. Re5 Kg7 44. Rxf5 (44. Rxc5 Rxb3 45. Re3 Rxe3+ 46. Kxe3 Rd8 $18) (44. d7 Rd8 $18) 44... Rxb3 45. Rxb3 Rxb3+ 46. Ke4 Rb8 47. Rxc5 a4) 43. d7 {[%emt 0:03:03]} (43. Rxd4 $142 cxd4 44. d7 Rb8 45. Re5 (45. Rd3 Ke7 $14) 45... Rxb3+ 46. Ke2 Rb8 47. Rxa5 Ke7 48. Rd5 (48. Rxf5 Kxd7 49. Kd3 Rb6 $18)) 43... Rb8 {[%emt 0:00:11]} 44. Rxd4 {[%emt 0:15:40] White mates.} cxd4 {[%emt 0:00:05] [#]} 45. Re8+ $1 {[%emt 0:00:39][%mdl 512]} Rxe8 {[%emt 0:00:05]} 46. dxe8=Q+ {[%emt 0:00:06]} Kxe8 {[%emt 0:00:03]} 47. g4 {[%emt 0:01:39]} fxg4+ {[%emt 0:01:14]} 48. Kxg4 {[%emt 0:00:06] K3P-K3P} ({Inferior is} 48. Ke4 h5 49. Kxd4 h4 $11) 48... Ke7 {[%emt 0:01:14]} 49. Kf3 {[%emt 0:00:05]} Kd6 {[%emt 0:01:20]} 50. Ke4 {[%emt 0:00:18]} Kc5 {[%emt 0:00:04]} 51. f5 {[%emt 0:00:14]} d3 {[%emt 0:05:37]} 52. Kxd3 {[%emt 0:00:22] K3P-KPP} Kd5 {[%emt 0:00:04]} 53. f6 {[%emt 0:00:23]} Ke6 {[%emt 0:00:05]} 54. Kc4 {[%emt 0:00:11]} Kxf6 {[%emt 0:00:14]} 55. Kb5 {[%emt 0:00:03]} Kg5 {[%emt 0:00:04]} 56. Kxa5 {[%emt 0:00:06]} Kg4 {[%emt 0:00:03]} 57. b4 {[%emt 0:00:04][%cal Bb3b4,Bb4b5,Bb5b6][%mdl 32]} Kh3 {[%emt 0:00:04]} 58. b5 {[%emt 0:00:03]} Kxh2 {[%emt 0:00:04]} 59. b6 {[%emt 0:00:02] Weighted Error Value: White=0.06 (flawless) /Black=0.35.  Mistake:       	White=2     	Black=4      Inaccurate:     	White=1     	Black=6      OK:         	White=14    	Black=11     Best:        	White=4     	Black=1      Strong:       	White=1     	Black=1} 1-0

[Event "Budapest Chess Festival 2024"]
[Site "Budapest"]
[Date "2024.05.28"]
[Round "6.10"]
[White "Berkes, Ferenc"]
[Black "Filip, Andrei"]
[Result "1-0"]
[ECO "E14"]
[WhiteElo "2618"]
[BlackElo "2286"]
[Annotator "TA"]
[PlyCount "47"]
[EventDate "2024.05.20"]
[EventType "swiss"]
[EventCountry "HUN"]
[SourceTitle "playchess.com"]
[Source "ChessBase"]
[SourceQuality "1"]
[TimeControl "40/5400+30:1800+30"]

{[%evp 23,47,25,14,47,43,43,32,34,16,44,120,131,126,126,115,0,0,-84,0,0,318,328,29979,29980,5690,171]} 1. d4 {[%emt 0:00:44]} Nf6 {[%emt 0:00:37]} 2. Nf3 {[%emt 0:00:06]} e6 {[%emt 0:00:08]} 3. c4 {[%emt 0:00:09]} b6 {[%emt 0:00:27]} 4. e3 {[%emt 0:00:49]} Bb7 {[%emt 0:01:46]} 5. Bd3 {[%emt 0:00:22]} c5 {[%emt 0:03:29]} 6. Nc3 {[%emt 0:00:15]} cxd4 {[%emt 0:04:37]} 7. exd4 {[%emt 0:00:35]} Be7 {[%emt 0:02:02]} 8. O-O {[%emt 0:02:07]} d5 {[%emt 0:02:46]} 9. cxd5 {[%emt 0:00:28]} Nxd5 {[%emt 0:00:16]} 10. Ne5 {[%emt 0:02:56]} O-O {[%emt 0:01:43]} 11. Qg4 {[%emt 0:08:55]} Nf6 {[%emt 0:01:46]} 12. Qh4 {[%emt 0:01:45]} Ne4 {[%emt 0:09:00]} 13. Qh3 {[%emt 0:04:25]} Qxd4 {[%emt 0:34:23]} 14. Bf4 {[%emt 0:02:17] And now Rad1 would win.} Nf6 {[%emt 0:02:46]} 15. Ne2 {[%emt 0:03:08] The board is on fire. White is slightly better.} Qa4 {[%emt 0:01:47]} (15... Qxb2 $2 16. a3 $18) 16. Rfc1 $40 {[%emt 0:13:27][%mdl 128] Threatens to win with Bg5. Black needs to defend precisely.} Qe8 {[%emt 0:10:27]} (16... Na6 $14) 17. Ng4 $1 $16 {[%emt 0:17:03] White is much more active. The black rooks are passive.} h5 {[%emt 0:05:39]} 18. Nxf6+ {[%emt 0:32:57]} Bxf6 {[%emt 0:00:07]} 19. Bd6 {[%emt 0:00:44]} (19. Qxh5 g6 20. Qh3 Nc6 $14 (20... Bxb2 $2 21. Rc7 $18)) (19. Rc7 $1 $16 {[%cal Oh3h5] White wants to mate with Qxh5!} Ba6 20. Be4 Bxe2 21. Bxa8) 19... Bxb2 $1 $11 {[%emt 0:04:47]} 20. Nf4 {[%emt 0:00:05] [#]} g6 $1 {[%emt 0:08:13]} 21. Nxh5 {[%emt 0:02:38]} (21. Bxf8 Kxf8) 21... gxh5 $2 {[%emt 0:02:43][%mdl 8192]} (21... Qd7 $1 $11 22. Bxg6 fxg6 (22... Qxd6 $2 23. Nf6+ Kg7 24. Ne8+ Kxg6 25. Nxd6 $18)) 22. Rc7 $18 {[%emt 0:00:12][%cal Oh3h5] Intending Qxh5! and mate.} (22. Qxh5 f5 23. Qg5+ Bg7 $16) 22... Bg7 $2 {[%emt 0:01:05]} ({Worse is} 22... Bxa1 23. Qxh5 (23. Rxb7 Nd7 $11) (23. Rxb7 Nd7 $11)) (22... Nd7 $18) 23. Qxh5 {[%emt 0:00:57][%csl Gd3][%cal Rh5h7]} f5 {[%emt 0:00:21] [#]} 24. Rxg7+ $1 {[%emt 0:00:11] Weighted Error Value: White=0.16 (very precise) /Black=0.84.  Loses game:     	---       	Black=1      Mistake:       	White=2     	Black=3      OK:         	White=6     	Black=4      Best:        	White=1     	Black=1      Strong:       	White=1     	Black=1} 1-0

[Event "Budapest Chess Festival 2024"]
[Site "Budapest"]
[Date "2024.05.28"]
[Round "6.11"]
[White "Aizenberg, Benny"]
[Black "Kozak, Adam"]
[Result "1-0"]
[ECO "B15"]
[WhiteElo "2403"]
[BlackElo "2607"]
[Annotator "RC"]
[PlyCount "117"]
[EventDate "2024.05.20"]
[EventType "swiss"]
[EventCountry "HUN"]
[SourceTitle "playchess.com"]
[Source "ChessBase"]
[SourceQuality "1"]
[TimeControl "40/5400+30:1800+30"]

1. e4 {[%emt 0:00:36]} c6 {[%emt 0:00:53]} 2. d4 {[%emt 0:00:04]} d5 {[%emt 0:00:06]} 3. Nc3 {[%emt 0:00:04]} g6 {[%emt 0:01:18]} 4. e5 {[%emt 0:00:23]} Bg7 {[%emt 0:00:46]} 5. f4 {[%emt 0:00:06]} h5 {[%emt 0:01:00]} 6. Nf3 {[%emt 0:00:07]} Nh6 {[%emt 0:01:28]} 7. g3 {[%emt 0:05:34]} Bg4 {[%emt 0:05:27]} 8. h3 {[%emt 0:00:06]} Bf5 {[%emt 0:00:04]} 9. Be3 {[%emt 0:02:45]} a5 {[%emt 0:05:49]} 10. Bd3 {[%emt 0:06:36]} a4 {[%emt 0:04:19]} 11. Bxf5 {[%emt 0:05:54]} Nxf5 {[%emt 0:01:42]} 12. Kf2 {[%emt 0:00:10]} Nxe3 {[%emt 0:08:19]} 13. Kxe3 {[%emt 0:00:06]} e6 {[%emt 0:00:08]} 14. Qd3 {[%emt 0:03:19]} Qa5 {[%emt 0:07:06]} 15. g4 {[%emt 0:09:54]} Na6 {[%emt 0:06:30]} 16. a3 {[%emt 0:04:55]} Nc7 {[%emt 0:02:05]} 17. Ne2 {[%emt 0:07:47]} Qb6 {[%emt 0:02:26]} 18. Kd2 {[%emt 0:05:04]} Bf8 {[%emt 0:04:09]} 19. gxh5 {[%emt 0:03:32]} Rxh5 {[%emt 0:02:42]} 20. h4 {[%emt 0:00:24]} c5 {[%emt 0:12:34]} 21. Ng3 {[%emt 0:08:42]} Rh6 {[%emt 0:00:12]} 22. h5 {[%emt 0:00:52]} cxd4 {[%emt 0:03:27]} 23. Rab1 {[%emt 0:01:21]} Be7 {[%emt 0:07:28]} 24. Ng5 {[%emt 0:02:18]} gxh5 {[%emt 0:01:34]} 25. Nxh5 {[%emt 0:02:01]} Rg6 {[%emt 0:00:14]} 26. Rhg1 {[%emt 0:03:26]} Kd7 {[%emt 0:11:50]} 27. Ke2 {[%emt 0:06:55]} Rh8 {[%emt 0:02:37]} 28. Rh1 {[%emt 0:00:22]} Bxg5 {[%emt 0:04:40]} 29. fxg5 {[%emt 0:00:05]} Kc8 {[%emt 0:00:38]} 30. Nf6 {[%emt 0:02:41]} Rd8 {[%emt 0:00:40]} 31. Rhg1 {[%emt 0:02:05]} Rh8 {[%emt 0:00:49]} 32. Rh1 {[%emt 0:00:05]} Rd8 {[%emt 0:00:03]} 33. Rhg1 {[%emt 0:00:49]} Rf8 {[%emt 0:02:37]} 34. b3 {[%emt 0:02:02]} axb3 {[%emt 0:00:31]} 35. Rxb3 {[%emt 0:00:09]} Qc6 {[%emt 0:00:36]} 36. Kd1 {[%emt 0:05:03]} Qc5 {[%emt 0:00:53]} 37. Kc1 {[%emt 0:03:05]} Rh8 {[%emt 0:00:21]} 38. Kb2 {[%emt 0:00:16]} Qc4 {[%emt 0:00:57]} 39. Qd2 {[%emt 0:00:09]} Qc5 {[%emt 0:00:22]} 40. Rg4 {[%emt 0:00:00]} b5 {[%emt 0:00:00]} 41. Rxd4 {[%emt 0:08:20]} Qb6 {[%emt 0:10:03]} 42. Rc3 {[%emt 0:04:04]} Kd8 {[%emt 0:06:03]} 43. Qf2 {[%emt 0:03:49]} Kc8 {[%emt 0:06:03]} 44. Ne4 {[%emt 0:03:58]} dxe4 {[%emt 0:05:11]} 45. Qxf7 {[%emt 0:01:04]} Kb8 {[%emt 0:00:36]} 46. Rd6 {[%emt 0:00:09]} Qa5 {[%emt 0:04:16]} 47. Qxg6 {[%emt 0:00:43]} b4 {[%emt 0:00:07]} 48. axb4 {[%emt 0:00:13]} Qxe5 {[%emt 0:00:03]} 49. Qf6 {[%emt 0:00:35]} Qxd6 {[%emt 0:00:01]} 50. Qxh8+ {[%emt 0:00:07]} Kb7 {[%emt 0:00:01]} 51. Qg7 {[%emt 0:00:16]} e3 {[%emt 0:00:22]} 52. Qxc7+ {[%emt 0:00:14]} Qxc7 {[%emt 0:00:02]} 53. Rxc7+ {[%emt 0:00:07]} Kxc7 {[%emt 0:00:03]} 54. Kc3 {[%emt 0:00:05]} Kd6 {[%emt 0:00:01]} 55. Kd3 {[%emt 0:00:08]} Ke5 {[%emt 0:00:05]} 56. Kxe3 {[%emt 0:00:04]} Kf5 {[%emt 0:00:03]} 57. b5 {[%emt 0:00:06]} Kxg5 {[%emt 0:00:03]} 58. b6 {[%emt 0:00:05]} Kf5 {[%emt 0:00:04]} 59. b7 {[%emt 0:00:04]} 1-0

[Event "Budapest Chess Festival 2024"]
[Site "Budapest"]
[Date "2024.05.28"]
[Round "6.12"]
[White "Nguyen, Piotr"]
[Black "Antal, Gergely"]
[Result "1/2-1/2"]
[ECO "A06"]
[WhiteElo "2402"]
[BlackElo "2586"]
[Annotator "TA"]
[PlyCount "59"]
[EventDate "2024.05.20"]
[EventType "swiss"]
[EventCountry "HUN"]
[SourceTitle "playchess.com"]
[Source "ChessBase"]
[SourceQuality "1"]
[TimeControl "40/5400+30:1800+30"]

{[%evp 10,59,29,29,31,44,49,42,59,50,54,45,51,45,48,11,15,24,22,16,40,40,33,31,35,26,37,38,25,29,78,42,50,47,60,66,127,125,122,122,112,77,78,39,43,48,70,37,55,46,43,12]} 1. Nf3 {[%emt 0:00:33]} d5 {[%emt 0:07:09]} 2. g3 {[%emt 0:00:12]} Nf6 {[%emt 0:00:17]} 3. Bg2 {[%emt 0:00:22]} e6 {[%emt 0:00:24]} 4. O-O {[%emt 0:00:32]} Bd6 {[%emt 0:00:25]} 5. c4 {[%emt 0:02:13]} O-O {[%emt 0:01:00]} 6. d4 {[%emt 0:01:58]} Nc6 {[%emt 0:01:05]} 7. b3 {[%emt 0:08:33][%cal Bb2b3,Bb3c4,Bc4c5][%mdl 32]} dxc4 {[%emt 0:00:23]} 8. bxc4 {[%emt 0:00:06]} e5 {[%emt 0:00:05]} 9. c5 {[%emt 0:03:22]} Be7 {[%emt 0:00:41]} 10. dxe5 {[%emt 0:01:07]} Qxd1 {[%emt 0:00:30]} 11. Rxd1 {[%emt 0:00:05]} Ne4 {[%emt 0:00:05] Against Nc3} 12. Bb2 {[%emt 0:11:40]} Nxc5 {[%emt 0:23:07]} 13. Nc3 {[%emt 0:01:15]} Be6 {[%emt 0:00:30]} 14. Ba3 {[%emt 0:16:23]} Rad8 {[%emt 0:08:52] [#]} 15. Ng5 $1 {[%emt 0:05:40]} Nxe5 {[%emt 0:12:48][%cal Bc6e5,Be5c4,Bc4d6][%mdl 32]} 16. Nxe6 {[%emt 0:01:26]} fxe6 {[%emt 0:00:02]} 17. Bxb7 {[%emt 0:02:23]} Nc4 {[%emt 0:03:20]} 18. Bxc5 {[%emt 0:02:48]} Bxc5 {[%emt 0:00:04]} (18... Rxd1+ 19. Nxd1 Bxc5 20. Bg2) 19. e3 {[%emt 0:07:15]} Rb8 {[%emt 0:11:47]} (19... Bb6 $11 {is superior.}) 20. Rab1 {[%emt 0:03:52]} Nd6 {[%emt 0:04:38]} 21. Bg2 {[%emt 0:01:13]} Rfd8 {[%emt 0:07:49]} 22. Rbc1 {[%emt 0:08:26]} Bb4 {[%emt 0:11:47] [#]} (22... Bb6 $14) 23. Ne2 $1 $16 {[%emt 0:03:54]} c5 {[%emt 0:01:49] Wards off Nd4} 24. Nf4 {[%emt 0:02:40]} Kf7 {[%emt 0:00:04]} 25. Nd3 {[%emt 0:04:01] White has more active pieces.} Ba3 {[%emt 0:01:23]} 26. Rc3 {[%emt 0:01:27]} Nb5 {[%emt 0:02:14] White is slightly better.} 27. Rc4 {[%emt 0:01:24]} Ke7 {[%emt 0:00:35][%cal Oa3b4]} 28. Bf3 {[%emt 0:01:47][%cal Od3e5]} Rb6 {[%emt 0:00:50]} 29. Be2 {[%emt 0:03:23]} (29. Nxc5 Rxd1+ 30. Bxd1 Nd6 $19) 29... a5 {[%emt 0:00:36]} 30. Kg2 {[%emt 0:04:10] Weighted Error Value: White=0.09 (flawless) /Black=0.09 (flawless) .  Mistake:       	---       	Black=2      Inaccurate:     	White=6     	---        OK:         	White=9     	Black=12     Best:        	White=1     	---        Strong:       	White=1     	---} (30. Nxc5 $2 {is the wrong capture.} Rxd1+ 31. Bxd1 Nd6 $19) 1/2-1/2

[Event "Budapest Chess Festival 2024"]
[Site "Budapest"]
[Date "2024.05.28"]
[Round "6.15"]
[White "Karacsonyi, Gellert"]
[Black "Mihok, Oliver"]
[Result "1/2-1/2"]
[ECO "B48"]
[WhiteElo "2389"]
[BlackElo "2528"]
[Annotator "TA"]
[PlyCount "120"]
[EventDate "2024.05.20"]
[EventType "swiss"]
[EventCountry "HUN"]
[SourceTitle "playchess.com"]
[Source "ChessBase"]
[SourceQuality "1"]
[TimeControl "40/5400+30:1800+30"]

{[%evp 20,120,0,0,0,0,0,0,0,0,0,0,0,0,0,-16,-8,-28,-14,-14,-10,-28,-29,-25,-23,-27,-9,-14,-18,-14,-22,-27,-10,-31,-27,-45,-41,-54,-29,-57,-34,-55,-49,-48,-48,-47,-47,-211,-46,-57,-57,-77,-72,-91,0,-31,0,-104,-99,-102,-104,-106,-106,-156,-147,-191,-187,-216,-214,-312,-302,-316,-225,-225,-225,-225,-143,-143,-143,-143,-143,-143,-143,-143,-143,-143,-143,-143,-143,-143,-143,-143,-143,-143,-143,-143,0,-143,-8,-8,-8,-8,-8]} 1. e4 {[%emt 0:00:33]} c5 {[%emt 0:02:09]} 2. Nf3 {[%emt 0:00:08]} e6 {[%emt 0:00:25]} 3. d4 {[%emt 0:00:11]} cxd4 {[%emt 0:00:06]} 4. Nxd4 {[%emt 0:00:04]} Nc6 {[%emt 0:00:21]} 5. Nc3 {[%emt 0:00:12]} Qc7 {[%emt 0:00:04]} 6. Be3 {[%emt 0:00:11]} a6 {[%emt 0:00:08]} 7. Qd2 {[%emt 0:00:38]} Nf6 {[%emt 0:02:19]} 8. f4 {[%emt 0:00:08] B48: Sicilian: Taimanov: 5 Nc3 Qc7 6 Be3 a6 without Be2.} Bb4 {[%emt 0:02:39]} 9. Bd3 {[%emt 0:00:11]} b5 {[%emt 0:02:38]} 10. e5 $146 {[%emt 0:04:29]} ({Predecessor:} 10. a3 Be7 11. e5 Ng4 12. Nxc6 dxc6 13. Ne4 Nxe3 14. Qxe3 Bb7 15. b4 c5 16. Nxc5 Bxc5 17. Qxc5 Qxc5 18. bxc5 {1-0 Guseinov,G (2636)-Matlakov,M (2670) Wch Blitz Samarkand 2023 (13)}) 10... Nd5 {[%emt 0:06:12]} 11. Nxc6 {[%emt 0:09:20]} dxc6 {[%emt 0:14:03]} 12. O-O {[%emt 0:06:43]} O-O {[%emt 0:01:51]} 13. a3 {[%emt 0:06:38]} Bxc3 {[%emt 0:00:19]} 14. bxc3 {[%emt 0:00:07]} c5 {[%emt 0:04:50]} 15. c4 {[%emt 0:10:01]} bxc4 {[%emt 0:07:42]} 16. Bxc4 {[%emt 0:00:20]} Bb7 {[%emt 0:02:14]} 17. Bxd5 {[%emt 0:07:39]} Bxd5 {[%emt 0:04:33]} 18. c4 {[%emt 0:00:51]} Bxc4 {[%emt 0:02:19]} 19. Rfc1 {[%emt 0:00:07]} Rfd8 {[%emt 0:01:43]} 20. Qc2 {[%emt 0:09:19]} Bd3 {[%emt 0:05:43]} 21. Qxc5 {[%emt 0:00:45]} Qb7 {[%emt 0:01:22]} 22. Qb4 {[%emt 0:03:11]} Rab8 {[%emt 0:03:04]} 23. Qxb7 {[%emt 0:02:33]} Rxb7 {[%emt 0:00:04]} 24. Rc6 {[%emt 0:03:20]} Be4 {[%emt 0:05:50]} 25. Rc4 {[%emt 0:02:15]} Bf5 {[%emt 0:02:52]} 26. Rac1 {[%emt 0:04:40]} h5 {[%emt 0:01:14]} 27. Rc8 {[%emt 0:02:44]} Rxc8 {[%emt 0:00:23]} 28. Rxc8+ {[%emt 0:00:04]} Kh7 {[%emt 0:00:05]} 29. Rc3 {[%emt 0:14:27]} Be4 {[%emt 0:04:15]} 30. h3 {[%emt 0:02:21]} Rb1+ {[%emt 0:05:34]} 31. Bc1 {[%emt 0:01:05]} h4 {[%emt 0:02:51]} 32. Kf2 {[%emt 0:00:23]} Ra1 {[%emt 0:01:25]} 33. Bb2 $2 {[%emt 0:01:41]} ({White should play} 33. g3 $15) 33... Rd1 $2 {[%emt 0:01:35]} (33... Ra2 $19 34. Rb3 Bd5) 34. Bc1 {[%emt 0:01:29]} Rh1 {[%emt 0:03:08]} 35. Rc4 {[%emt 0:03:00]} Bd5 {[%emt 0:05:40]} 36. Rc2 {[%emt 0:00:06]} Be4 {[%emt 0:01:04]} ({Better is} 36... Kg6 $17 37. Be3 Rb1) 37. Rc4 $1 $15 {[%emt 0:00:10]} Bd5 {[%emt 0:00:15]} (37... Bd3 $15 38. Rc7 Rd1) 38. Rc2 $1 $17 {[%emt 0:00:05]} Kg6 {[%emt 0:00:23]} 39. Be3 {[%emt 0:03:05]} Ra1 {[%emt 0:00:42]} 40. Bc5 {[%emt 0:00:00]} Kf5 {[%emt 0:00:00]} 41. Bf8 {[%emt 0:01:21]} (41. Ke3 $142) 41... Kxf4 $17 {[%emt 0:08:34]} 42. Bxg7 {[%emt 0:00:53]} Rxa3 {[%emt 0:02:21]} 43. Bf6 {[%emt 0:00:10] [#]} a5 $1 {[%emt 0:02:08]} 44. Re2 {[%emt 0:03:40]} (44. Be7 {was necessary.} Ra1 45. Bxh4) 44... a4 $19 {[%emt 0:02:51]} 45. Bxh4 {[%emt 0:01:12]} Ra1 {[%emt 0:00:27]} 46. g3+ {[%emt 0:03:18]} Kf5 {[%emt 0:00:03]} 47. g4+ {[%emt 0:02:06]} Kf4 {[%emt 0:01:45]} 48. Be7 {[%emt 0:04:01]} a3 {[%emt 0:04:44]} 49. Bb4 {[%emt 0:00:33]} Kg5 {[%emt 0:00:12]} 50. Re1 {[%emt 0:01:05]} Rxe1 {[%emt 0:04:15]} 51. Kxe1 {[%emt 0:00:42]} a2 {[%emt 0:00:04]} 52. Bc3 {[%emt 0:00:03]} Kh4 {[%emt 0:00:14]} 53. Kd2 {[%emt 0:00:05]} Kxh3 {[%emt 0:00:03]} 54. Kc1 {[%emt 0:00:05]} Kxg4 {[%emt 0:00:03]} 55. Kb2 {[%emt 0:00:04]} Kf4 {[%emt 0:00:15]} 56. Ka1 {[%emt 0:00:11]} Ke4 {[%emt 0:00:20]} 57. Bb2 {[%emt 0:00:05]} Kf4 {[%emt 0:00:26]} 58. Bc3 {[%emt 0:00:05]} f5 {[%emt 0:00:09]} (58... Bc4 $17 {White should prevent ...Ke4.} 59. Kb2 Kf5) 59. exf6 $11 {[%emt 0:00:05]} e5 {[%emt 0:00:02]} 60. Bxe5+ $1 {[%emt 0:00:05]} Kxe5 1/2-1/2